[Event "46th GRE-chT Premier 2018"]
[Site "Rio Achaia"]
[Date "2018.07.11"]
[Round "2"]
[White "Fertaki, Eleftheria"]
[Black "Radeva, Viktoria"]
[Result "0-1"]
[ECO "B43"]
[WhiteElo "1139"]
[BlackElo "2274"]
[Annotator "NA"]
[PlyCount "112"]
[EventDate "2018.07.10"]
[EventType "team-tourn"]
[EventCountry "GRE"]
[SourceTitle "playchess.com"]
[Source "ChessBase"]
[SourceQuality "1"]
[TimeControl "40/5400+30:1800+30"]

1. e4 {[%emt 0:00:00]} c5 {[%emt 0:00:00]} 2. Nf3 {[%emt 0:00:00]} e6 {[%emt 0:00:00]} 3. d4 {[%emt 0:00:00]} cxd4 {[%emt 0:00:00]} 4. Nxd4 {[%emt 0:00:00]} a6 {[%emt 0:00:00]} 5. Nc3 {[%emt 0:00:34]} Qc7 $14 {[%emt 0:00:00] LiveBook: 7429 Games} 6. Be3 {[%emt 0:04:03]} Bb4 {[%emt 0:00:29]} 7. Nde2 {[%emt 0:06:43]} Nf6 {[%emt 0:01:01]} 8. Bd2 {[%emt 0:04:10]} Nc6 {[%emt 0:01:49]} 9. Ng3 {[%emt 0:02:40]} O-O {[%emt 0:04:48]} 10. Bd3 {[%emt 0:02:07]} d6 {[%emt 0:03:03]} 11. O-O {[%emt 0:01:32]} Bc5 {[%emt 0:02:23]} 12. Qe2 {[%emt 0:08:49]} Nd4 {[%emt 0:05:02]} 13. Qd1 {[%emt 0:02:17]} b5 {[%emt 0:02:17]} 14. a3 {[%emt 0:09:46]} Bb7 {[%emt 0:05:26]} 15. Be3 {[%emt 0:03:00]} Nc6 {[%emt 0:06:03]} 16. Re1 {[%emt 0:07:43]} Ne5 {[%emt 0:04:26]} 17. h3 {[%emt 0:03:17]} Rac8 {[%emt 0:05:27]} 18. Bxc5 {[%emt 0:09:03]} dxc5 {[%emt 0:01:42]} 19. Bf1 {[%emt 0:08:16]} Rfd8 {[%emt 0:01:42]} 20. Qc1 {[%emt 0:01:02]} b4 {[%emt 0:08:34]} 21. Nd1 {[%emt 0:03:09]} a5 {[%emt 0:02:03]} 22. c3 {[%emt 0:01:01]} Qb6 {[%emt 0:01:51]} 23. Qe3 {[%emt 0:01:56]} bxa3 {[%emt 0:05:50]} 24. Rxa3 {[%emt 0:01:27]} Ba6 {[%emt 0:00:40]} 25. Qg5 {[%emt 0:03:27]} Nfd7 {[%emt 0:02:27]} 26. Nh5 {[%emt 0:02:23]} Ng6 {[%emt 0:01:43]} 27. Bxa6 {[%emt 0:01:16]} Qxa6 {[%emt 0:00:01]} 28. Ne3 {[%emt 0:04:05]} h6 {[%emt 0:01:18]} 29. Qg3 {[%emt 0:00:45]} Qb5 {[%emt 0:02:11]} 30. Ra2 {[%emt 0:02:34]} c4 {[%emt 0:01:12]} 31. Nf4 {[%emt 0:01:18]} Nxf4 {[%emt 0:00:23]} 32. Qxf4 {[%emt 0:00:01]} Ne5 {[%emt 0:00:56]} 33. Rd1 {[%emt 0:01:46]} Nd3 {[%emt 0:02:49]} 34. Qh4 {[%emt 0:01:04]} a4 {[%emt 0:04:04]} 35. Nc2 {[%emt 0:01:20]} Qb3 {[%emt 0:01:30]} 36. Nb4 {[%emt 0:00:18]} Qxd1+ {[%emt 0:00:10]} 37. Kh2 {[%emt 0:00:13]} Nxb4 {[%emt 0:00:11]} 38. cxb4 {[%emt 0:00:14]} Qb3 {[%emt 0:00:54]} 39. Ra3 {[%emt 0:00:36]} Qxb2 {[%emt 0:01:34]} 40. Rxa4 {[%emt 0:00:00]} c3 {[%emt 0:00:00]} 41. Ra5 {[%emt 0:01:12]} c2 {[%emt 0:01:14]} 42. Rc5 {[%emt 0:00:15]} c1=Q {[%emt 0:00:22]} 43. Rxc1 {[%emt 0:00:25]} Qxc1 {[%emt 0:00:02]} 44. b5 {[%emt 0:00:14]} Qg5 {[%emt 0:00:13]} 45. Qxg5 hxg5 46. h4 {[%emt 0:00:58]} gxh4 {[%emt 0:00:34]} 47. Kh3 {[%emt 0:00:04]} Rb8 {[%emt 0:00:03]} 48. Kxh4 {[%emt 0:00:08]} Rxb5 {[%emt 0:00:03]} 49. e5 {[%emt 0:00:22]} Rxe5 {[%emt 0:00:05]} 50. f4 {[%emt 0:00:08]} g5+ {[%emt 0:00:10]} 51. Kg4 {[%emt 0:00:10]} gxf4 {[%emt 0:00:06]} 52. g3 {[%emt 0:00:08]} fxg3 {[%emt 0:00:06]} 53. Kxg3 {[%emt 0:00:10]} Rd4 {[%emt 0:00:10]} 54. Kh2 {[%emt 0:00:13]} Re3 {[%emt 0:00:05]} 55. Kg2 {[%emt 0:00:10]} Rd2+ {[%emt 0:00:05]} 56. Kg1 {[%emt 0:00:07]} Re1# {[%emt 0:00:04]} 0-1

[Event "46th GRE-chT Premier 2018"]
[Site "Rio Achaia"]
[Date "2018.07.11"]
[Round "2"]
[White "Magklaras, Panagiotis"]
[Black "Trapalis, Theodoros"]
[Result "0-1"]
[ECO "C13"]
[WhiteElo "1131"]
[BlackElo "1386"]
[Annotator "NA"]
[PlyCount "182"]
[EventDate "2018.07.10"]
[EventType "team-tourn"]
[EventCountry "GRE"]
[SourceTitle "playchess.com"]
[Source "ChessBase"]
[SourceQuality "1"]
[TimeControl "40/5400+30:1800+30"]

1. e4 {[%emt 0:00:00]} e6 {[%emt 0:02:51]} 2. d4 {[%emt 0:00:00]} d5 {[%emt 0:00:05]} 3. Nc3 {[%emt 0:00:00]} Nf6 {[%emt 0:00:07]} 4. Bg5 {[%emt 0:00:10]} Be7 {[%emt 0:00:07]} 5. e5 {[%emt 0:00:18]} Nfd7 {[%emt 0:00:09]} 6. h4 {[%emt 0:00:46]} h6 {[%emt 0:02:14]} 7. Bxe7 {[%emt 0:03:40]} Qxe7 {[%emt 0:01:06]} 8. Qg4 {[%emt 0:06:40]} O-O {[%emt 0:02:03]} 9. a3 {[%emt 0:05:15]} f6 {[%emt 0:08:32]} 10. f4 {[%emt 0:03:10]} a6 {[%emt 0:06:10]} 11. Bd3 {[%emt 0:06:14]} c5 {[%emt 0:06:12]} 12. Qg6 {[%emt 0:00:37]} f5 {[%emt 0:00:19]} 13. Nf3 {[%emt 0:00:16]} Qf7 {[%emt 0:13:26]} 14. Qg3 {[%emt 0:06:25]} Nc6 {[%emt 0:04:09]} 15. Qf2 {[%emt 0:07:24]} c4 {[%emt 0:08:02]} 16. Be2 {[%emt 0:01:20]} b5 {[%emt 0:02:14]} 17. b3 {[%emt 0:03:01]} Bb7 {[%emt 0:04:44]} 18. O-O {[%emt 0:08:13]} Rac8 {[%emt 0:04:41]} 19. Rfc1 {[%emt 0:04:19]} Ne7 {[%emt 0:07:16]} 20. b4 {[%emt 0:08:57]} Nc6 {[%emt 0:04:40]} 21. a4 {[%emt 0:04:51]} bxa4 {[%emt 0:06:00]} 22. b5 {[%emt 0:00:13]} Na7 {[%emt 0:02:09]} 23. bxa6 {[%emt 0:01:18]} Bxa6 {[%emt 0:00:15]} 24. Rxa4 {[%emt 0:00:07]} Rc6 {[%emt 0:00:18]} 25. Rca1 {[%emt 0:01:13]} Nb8 {[%emt 0:02:00]} 26. Nd1 {[%emt 0:06:59]} Nb5 {[%emt 0:03:00]} 27. c3 {[%emt 0:01:49]} Rfc8 {[%emt 0:02:14]} 28. Rb4 {[%emt 0:02:49]} Rb6 {[%emt 0:02:02]} 29. Nb2 {[%emt 0:01:57]} Rb7 {[%emt 0:01:11]} 30. Qe1 {[%emt 0:01:33]} Qe7 {[%emt 0:01:16]} 31. Kh1 {[%emt 0:03:33]} Rc6 {[%emt 0:01:37]} 32. Bd1 {[%emt 0:02:37]} Qd8 {[%emt 0:02:15]} 33. Ba4 {[%emt 0:02:38]} Rcb6 {[%emt 0:01:02]} 34. Bxb5 {[%emt 0:02:35]} Rxb5 {[%emt 0:00:25]} 35. Rxb5 {[%emt 0:01:15]} Rxb5 {[%emt 0:00:24]} 36. Na4 {[%emt 0:00:53]} Nd7 {[%emt 0:01:25]} 37. Qc1 {[%emt 0:01:08]} Ra5 {[%emt 0:01:15]} 38. Nb2 {[%emt 0:01:59]} Bb5 {[%emt 0:00:29]} 39. Rxa5 {[%emt 0:01:10]} Qxa5 {[%emt 0:00:04]} 40. Nd1 {[%emt 0:00:00]} Nb6 {[%emt 0:00:00]} 41. Qb2 {[%emt 0:05:29]} Ba4 {[%emt 0:11:00]} 42. Qa3 {[%emt 0:04:25]} Qb5 {[%emt 0:02:05]} 43. Nb2 {[%emt 0:00:49]} Qb3 {[%emt 0:01:28]} 44. Qxb3 {[%emt 0:01:42]} Bxb3 {[%emt 0:01:09]} 45. Kh2 {[%emt 0:06:05]} Na8 {[%emt 0:06:04]} 46. Ng1 {[%emt 0:10:24]} Nc7 {[%emt 0:02:53]} 47. Ne2 {[%emt 0:00:09]} Nb5 {[%emt 0:01:48]} 48. Kg1 {[%emt 0:00:35]} Bc2 {[%emt 0:02:27]} 49. Kf2 {[%emt 0:00:37]} Kf7 {[%emt 0:01:01]} 50. h5 {[%emt 0:00:42]} g6 {[%emt 0:02:13]} 51. hxg6+ {[%emt 0:00:37]} Kxg6 {[%emt 0:00:05]} 52. Kf3 {[%emt 0:01:29]} Kh5 {[%emt 0:02:22]} 53. g3 {[%emt 0:02:16]} Na3 {[%emt 0:00:59]} 54. Nc1 {[%emt 0:01:27]} Nb1 {[%emt 0:00:51]} 55. Ne2 {[%emt 0:00:36]} Nd2+ {[%emt 0:00:55]} 56. Ke3 {[%emt 0:00:14]} Ne4 {[%emt 0:01:25]} 57. Kf3 {[%emt 0:00:24]} Nd2+ {[%emt 0:00:32]} 58. Ke3 {[%emt 0:00:04]} Nb1 {[%emt 0:00:32]} 59. Kf3 {[%emt 0:00:07]} Be4+ {[%emt 0:00:37]} 60. Ke3 {[%emt 0:00:43]} Kg4 {[%emt 0:00:22]} 61. Kf2 {[%emt 0:01:11]} Bf3 {[%emt 0:00:39]} 62. Ng1 {[%emt 0:00:10]} Be4 {[%emt 0:00:30]} 63. Ne2 {[%emt 0:00:06]} h5 {[%emt 0:00:30]} 64. Nd1 {[%emt 0:00:48]} Kh3 {[%emt 0:00:31]} 65. Ng1+ {[%emt 0:01:16]} Kh2 {[%emt 0:00:16]} 66. Ne2 {[%emt 0:01:21]} Nd2 {[%emt 0:00:41]} 67. Ne3 {[%emt 0:00:59]} Bd3 {[%emt 0:00:33]} 68. Nc1 {[%emt 0:01:01]} Ne4+ {[%emt 0:00:30]} 69. Kf3 {[%emt 0:00:22]} Nxg3 {[%emt 0:00:29]} 70. Nxd3 {[%emt 0:00:23]} cxd3 {[%emt 0:00:01]} 71. c4 {[%emt 0:00:27]} Ne2 {[%emt 0:00:40]} 72. cxd5 {[%emt 0:00:35]} Nxd4+ {[%emt 0:00:26]} 73. Kf2 {[%emt 0:00:20]} exd5 {[%emt 0:00:47]} 74. Nxd5 {[%emt 0:00:15]} d2 {[%emt 0:00:34]} 75. Ne3 {[%emt 0:00:14]} h4 {[%emt 0:00:30]} 76. Nf1+ {[%emt 0:00:09]} Kh3 {[%emt 0:00:24]} 77. Nxd2 {[%emt 0:00:04]} Kg4 {[%emt 0:00:20]} 78. Nf3 {[%emt 0:00:44]} Nxf3 {[%emt 0:00:42]} 79. e6 {[%emt 0:00:04]} Nd2 {[%emt 0:00:04]} 80. e7 {[%emt 0:00:38]} Ne4+ {[%emt 0:00:03]} 81. Kg2 {[%emt 0:00:06]} Nf6 {[%emt 0:00:15]} 82. Kh2 {[%emt 0:00:05]} Kxf4 {[%emt 0:00:09]} 83. Kh3 {[%emt 0:00:06]} Kg5 {[%emt 0:00:12]} 84. Kg2 {[%emt 0:00:09]} f4 {[%emt 0:00:19]} 85. Kh3 {[%emt 0:00:12]} f3 {[%emt 0:00:26]} 86. Kh2 {[%emt 0:00:03]} Kg4 {[%emt 0:00:17]} 87. Kg1 {[%emt 0:00:19]} h3 {[%emt 0:00:17]} 88. Kh2 {[%emt 0:00:48]} f2 {[%emt 0:00:10]} 89. e8=Q {[%emt 0:00:06]} Nxe8 {[%emt 0:00:10]} 90. Kh1 {[%emt 0:00:02]} f1=Q+ {[%emt 0:00:09]} 91. Kh2 {[%emt 0:00:05]} Qg2# {[%emt 0:00:06]} 0-1

[Event "46th GRE-chT Premier 2018"]
[Site "Rio Achaia"]
[Date "2018.07.11"]
[Round "2"]
[White "Nikolakopoulou, Eleni"]
[Black "Isari, Angeliki"]
[Result "1-0"]
[ECO "D58"]
[WhiteElo "1111"]
[BlackElo "1153"]
[Annotator "NA"]
[PlyCount "69"]
[EventDate "2018.07.10"]
[EventType "team-tourn"]
[EventCountry "GRE"]
[SourceTitle "playchess.com"]
[Source "ChessBase"]
[SourceQuality "1"]
[TimeControl "40/5400+30:1800+30"]

1. d4 {[%emt 0:00:00]} d5 {[%emt 0:00:00]} 2. c4 {[%emt 0:00:00]} e6 {[%emt 0:00:10]} 3. Nc3 {[%emt 0:00:00]} Nf6 {[%emt 0:01:28]} 4. Bg5 {[%emt 0:00:26]} Be7 {[%emt 0:00:52]} 5. e3 {[%emt 0:01:14]} O-O {[%emt 0:02:54]} 6. Nf3 {[%emt 0:02:12]} h6 {[%emt 0:01:46]} 7. Bh4 {[%emt 0:03:05]} b6 {[%emt 0:01:15]} 8. Be2 {[%emt 0:01:21]} Bb7 {[%emt 0:01:14]} 9. O-O {[%emt 0:01:52]} Nbd7 {[%emt 0:00:34]} 10. Rc1 {[%emt 0:01:06]} c5 {[%emt 0:03:29]} 11. cxd5 {[%emt 0:07:51]} Nxd5 {[%emt 0:05:01]} 12. Bg3 {[%emt 0:04:42]} Rc8 {[%emt 0:14:58]} 13. Nxd5 {[%emt 0:01:32]} Bxd5 {[%emt 0:01:45]} 14. a3 {[%emt 0:03:49]} Nf6 {[%emt 0:06:34]} 15. Ba6 {[%emt 0:03:32]} Ra8 {[%emt 0:05:13]} 16. dxc5 {[%emt 0:05:58]} Bxc5 {[%emt 0:01:57]} 17. b4 {[%emt 0:04:21]} Bd6 {[%emt 0:02:10]} 18. Ne5 {[%emt 0:04:22]} Ne4 {[%emt 0:05:50]} 19. Nc6 {[%emt 0:15:04]} Bxc6 {[%emt 0:05:01]} 20. Rxc6 {[%emt 0:01:43]} Bxg3 {[%emt 0:01:59]} 21. hxg3 {[%emt 0:02:10]} Qf6 {[%emt 0:06:49]} 22. Qc2 {[%emt 0:06:49]} Qe5 {[%emt 0:05:07]} 23. f4 {[%emt 0:04:41]} Qf5 {[%emt 0:06:59]} 24. Bd3 {[%emt 0:00:58]} Qg6 {[%emt 0:03:00]} 25. Bxe4 {[%emt 0:04:05]} f5 {[%emt 0:00:42]} 26. Bd5 {[%emt 0:02:46]} Rf6 {[%emt 0:02:03]} 27. Rxe6 {[%emt 0:04:09]} Rxe6 {[%emt 0:02:19]} 28. Bxa8 {[%emt 0:00:19]} Rxe3 {[%emt 0:00:29]} 29. Bd5+ {[%emt 0:01:30]} Kh7 {[%emt 0:00:42]} 30. Qc8 {[%emt 0:01:55]} Qxg3 {[%emt 0:04:52]} 31. Qg8+ {[%emt 0:00:15]} Kg6 {[%emt 0:00:13]} 32. Qf7+ {[%emt 0:00:30]} Kh7 {[%emt 0:00:15]} 33. Qxf5+ {[%emt 0:00:23]} Qg6 {[%emt 0:01:37]} 34. Bg8+ {[%emt 0:00:21]} Kxg8 {[%emt 0:00:45]} 35. Qxg6 {[%emt 0:00:05]} 1-0

[Event "46th GRE-chT Premier 2018"]
[Site "Rio Achaia"]
[Date "2018.07.11"]
[Round "2"]
[White "Tafani, Kleinta"]
[Black "Gioutsou, Miranta"]
[Result "0-1"]
[ECO "A56"]
[WhiteElo "1102"]
[BlackElo "1467"]
[Annotator "NA"]
[PlyCount "80"]
[EventDate "2018.07.10"]
[EventType "team-tourn"]
[EventCountry "GRE"]
[SourceTitle "playchess.com"]
[Source "ChessBase"]
[SourceQuality "1"]
[TimeControl "40/5400+30:1800+30"]

1. d4 {[%emt 0:01:17]} Nf6 {[%emt 0:00:00]} 2. c4 {[%emt 0:00:03]} c5 {[%emt 0:00:00]} 3. Nf3 {[%emt 0:00:19]} cxd4 {[%emt 0:00:00]} 4. Nxd4 {[%emt 0:00:09]} e5 {[%emt 0:00:00]} 5. Nf3 {[%emt 0:00:15]} Nc6 {[%emt 0:00:00]} 6. Nc3 {[%emt 0:00:13]} Bc5 {[%emt 0:03:35]} 7. h3 {[%emt 0:00:50]} h6 {[%emt 0:01:13]} 8. Nd5 {[%emt 0:01:56]} Ne4 {[%emt 0:03:35]} 9. e3 {[%emt 0:00:55]} Qa5+ {[%emt 0:05:13]} 10. Bd2 {[%emt 0:00:50]} Nxd2 {[%emt 0:00:24]} 11. Qxd2 {[%emt 0:00:07]} Qxd2+ {[%emt 0:03:51]} 12. Nxd2 {[%emt 0:00:11]} O-O {[%emt 0:03:59]} 13. a3 {[%emt 0:00:13]} Ne7 {[%emt 0:04:55]} 14. Nc7 {[%emt 0:06:12]} Rb8 {[%emt 0:00:19]} 15. b4 {[%emt 0:03:16]} Bb6 {[%emt 0:01:10]} 16. Nd5 {[%emt 0:00:39]} Nxd5 {[%emt 0:00:19]} 17. cxd5 {[%emt 0:00:06]} f5 {[%emt 0:14:59]} 18. Nc4 {[%emt 0:00:33]} Bd8 {[%emt 0:01:03]} 19. Rc1 {[%emt 0:00:34]} Bf6 {[%emt 0:06:22]} 20. Be2 {[%emt 0:00:22]} b6 {[%emt 0:05:28]} 21. O-O {[%emt 0:03:45]} Bb7 {[%emt 0:01:40]} 22. Rfd1 {[%emt 0:00:09]} e4 {[%emt 0:09:22]} 23. Rc2 {[%emt 0:00:37]} Rfc8 {[%emt 0:02:29]} 24. b5 {[%emt 0:01:25]} Rc5 {[%emt 0:01:34]} 25. a4 {[%emt 0:03:57]} Bxd5 {[%emt 0:02:20]} 26. Rdc1 {[%emt 0:00:46]} Rbc8 {[%emt 0:00:28]} 27. Na3 {[%emt 0:00:53]} Rxc2 {[%emt 0:00:15]} 28. Rxc2 {[%emt 0:00:12]} Rxc2 {[%emt 0:00:11]} 29. Nxc2 {[%emt 0:00:11]} Bb3 {[%emt 0:00:42]} 30. Nd4 {[%emt 0:00:46]} Bxd4 {[%emt 0:00:44]} 31. exd4 {[%emt 0:00:13]} Bxa4 {[%emt 0:00:11]} 32. Kh2 {[%emt 0:00:26]} Kf7 {[%emt 0:00:54]} 33. Kg3 {[%emt 0:01:05]} g5 {[%emt 0:00:22]} 34. h4 {[%emt 0:00:52]} Ke6 {[%emt 0:01:45]} 35. Bc4+ {[%emt 0:00:13]} Kf6 {[%emt 0:00:09]} 36. h5 {[%emt 0:01:06]} f4+ {[%emt 0:00:22]} 37. Kg4 {[%emt 0:00:16]} Bd1+ {[%emt 0:00:08]} 38. Kh3 {[%emt 0:00:42]} e3 {[%emt 0:00:09]} 39. fxe3 {[%emt 0:00:00]} fxe3 {[%emt 0:00:00]} 40. Kg3 {[%emt 0:00:00]} Bxh5 {[%emt 0:00:00]} 0-1

[Event "46th GRE-chT Premier 2018"]
[Site "Rio Achaia"]
[Date "2018.07.11"]
[Round "2"]
[White "Bichaki, Ourania"]
[Black "Kalyva, Kyriaki"]
[Result "0-1"]
[ECO "B23"]
[WhiteElo "1099"]
[BlackElo "1734"]
[Annotator "NA"]
[PlyCount "62"]
[EventDate "2018.07.10"]
[EventType "team-tourn"]
[EventCountry "GRE"]
[SourceTitle "playchess.com"]
[Source "ChessBase"]
[SourceQuality "1"]
[TimeControl "40/5400+30:1800+30"]

1. e4 {[%emt 0:02:51]} c5 {[%emt 0:00:00]} 2. Nc3 {[%emt 0:00:06]} Nc6 {[%emt 0:00:00]} 3. f4 {[%emt 0:01:15]} g6 {[%emt 0:00:49]} 4. Nf3 {[%emt 0:01:38]} Bg7 {[%emt 0:00:40]} 5. Bc4 {[%emt 0:02:53]} d6 {[%emt 0:04:54]} 6. d3 {[%emt 0:02:26]} Nd4 {[%emt 0:02:36]} 7. Ng5 {[%emt 0:12:23]} e6 {[%emt 0:13:03]} 8. O-O {[%emt 0:13:55]} h6 {[%emt 0:04:50]} 9. Nf3 {[%emt 0:04:59]} Ne7 {[%emt 0:00:24]} 10. Ne2 {[%emt 0:02:49]} Nec6 {[%emt 0:08:30]} 11. Nexd4 {[%emt 0:06:07]} Nxd4 {[%emt 0:00:27]} 12. c3 {[%emt 0:00:34]} Nc6 {[%emt 0:00:31]} 13. Be3 {[%emt 0:05:47]} O-O {[%emt 0:02:55]} 14. d4 {[%emt 0:03:23]} cxd4 {[%emt 0:11:45]} 15. Nxd4 {[%emt 0:02:26]} d5 {[%emt 0:00:57]} 16. exd5 {[%emt 0:01:09]} exd5 {[%emt 0:00:07]} 17. Bb3 {[%emt 0:03:54]} Re8 {[%emt 0:02:12]} 18. Qf3 {[%emt 0:04:56]} h5 {[%emt 0:04:51]} 19. h3 {[%emt 0:04:16]} Nxd4 {[%emt 0:02:51]} 20. Bxd4 {[%emt 0:01:34]} Bxd4+ {[%emt 0:00:44]} 21. cxd4 {[%emt 0:00:14]} Re4 {[%emt 0:00:57]} 22. Rad1 {[%emt 0:02:24]} Bf5 {[%emt 0:08:13]} 23. Rfe1 {[%emt 0:02:17]} Rxe1+ {[%emt 0:07:28]} 24. Rxe1 {[%emt 0:00:08]} Be4 {[%emt 0:00:13]} 25. Qf2 {[%emt 0:02:04]} Rc8 {[%emt 0:00:26]} 26. Qd2 {[%emt 0:01:31]} Qd6 {[%emt 0:01:07]} 27. Rc1 {[%emt 0:01:50]} Rc6 {[%emt 0:00:54]} 28. g3 {[%emt 0:03:55]} h4 {[%emt 0:02:03]} 29. Rc3 {[%emt 0:04:27]} hxg3 {[%emt 0:02:04]} 30. Rxg3 {[%emt 0:00:15]} Qf6 {[%emt 0:00:13]} 31. Qf2 {[%emt 0:03:00]} Rc1+ {[%emt 0:00:15]} 0-1

[Event "46th GRE-chT Premier 2018"]
[Site "Rio Achaia"]
[Date "2018.07.11"]
[Round "2"]
[White "Makrigianni, Eleni Iokasti"]
[Black "Papanagiotou, Argyro"]
[Result "1/2-1/2"]
[ECO "D02"]
[WhiteElo "1035"]
[BlackElo "1037"]
[Annotator "NA"]
[PlyCount "73"]
[EventDate "2018.07.10"]
[EventType "team-tourn"]
[EventCountry "GRE"]
[SourceTitle "playchess.com"]
[Source "ChessBase"]
[SourceQuality "1"]
[TimeControl "40/5400+30:1800+30"]

1. d4 {[%emt 0:00:00]} d5 {[%emt 0:00:00]} 2. Bf4 {[%emt 0:00:00]} Nf6 {[%emt 0:00:10]} 3. Nf3 {[%emt 0:00:07]} Bf5 {[%emt 0:01:26]} 4. e3 {[%emt 0:00:43]} e6 {[%emt 0:00:22]} 5. Be2 {[%emt 0:00:59]} Be7 {[%emt 0:01:08]} 6. h3 {[%emt 0:01:05]} Ne4 {[%emt 0:02:21]} 7. O-O {[%emt 0:02:19]} O-O {[%emt 0:00:15]} 8. c4 {[%emt 0:01:50]} c6 {[%emt 0:00:51]} 9. Nbd2 {[%emt 0:06:53]} Nd7 {[%emt 0:01:08]} 10. Rc1 {[%emt 0:04:22]} a6 {[%emt 0:05:56]} 11. Nxe4 {[%emt 0:00:57]} Bxe4 {[%emt 0:00:24]} 12. a4 {[%emt 0:02:21]} a5 {[%emt 0:04:42]} 13. cxd5 {[%emt 0:03:49]} exd5 {[%emt 0:00:25]} 14. Nd2 {[%emt 0:04:10]} Bg6 {[%emt 0:05:24]} 15. Bf3 {[%emt 0:05:39]} Nf6 {[%emt 0:00:37]} 16. Re1 {[%emt 0:01:53]} Re8 {[%emt 0:02:26]} 17. e4 {[%emt 0:06:32]} Bb4 {[%emt 0:02:09]} 18. exd5 {[%emt 0:14:25]} Rxe1+ {[%emt 0:00:30]} 19. Qxe1 {[%emt 0:00:15]} cxd5 {[%emt 0:00:23]} 20. Bg5 {[%emt 0:02:05]} Qb6 {[%emt 0:00:36]} 21. Bxf6 {[%emt 0:03:47]} Qxf6 {[%emt 0:00:19]} 22. Qe3 {[%emt 0:01:20]} Rd8 {[%emt 0:01:28]} 23. Nb3 {[%emt 0:03:11]} b6 {[%emt 0:01:53]} 24. Rc7 {[%emt 0:05:06]} h6 {[%emt 0:02:28]} 25. Qc1 {[%emt 0:04:39]} Bd6 {[%emt 0:02:01]} 26. Rc6 {[%emt 0:02:54]} Bf4 {[%emt 0:00:52]} 27. Rxf6 {[%emt 0:02:18]} Bxc1 {[%emt 0:00:13]} 28. Rxb6 {[%emt 0:00:46]} Bxb2 {[%emt 0:00:34]} 29. Rb5 {[%emt 0:01:05]} Bc2 {[%emt 0:01:27]} 30. Rxa5 {[%emt 0:13:24]} Bxb3 {[%emt 0:00:30]} 31. Rb5 {[%emt 0:00:10]} Bxd4 {[%emt 0:01:52]} 32. Rxb3 {[%emt 0:00:19]} Be5 {[%emt 0:00:37]} 33. Rd3 {[%emt 0:01:41]} d4 {[%emt 0:02:39]} 34. Be4 {[%emt 0:00:57]} Rc8 {[%emt 0:01:33]} 35. Rd1 {[%emt 0:00:52]} Rc7 {[%emt 0:02:25]} 36. g4 {[%emt 0:00:59]} Rc3 {[%emt 0:00:32]} 37. Rd3 {[%emt 0:02:15]} 1/2-1/2

[Event "46th GRE-chT Premier 2018"]
[Site "Rio Achaia"]
[Date "2018.07.11"]
[Round "2"]
[White "Papanagiotou, Dimitrios"]
[Black "Tsotras, Ioannis"]
[Result "0-1"]
[ECO "C50"]
[WhiteElo "1031"]
[BlackElo "1586"]
[Annotator "NA"]
[PlyCount "100"]
[EventDate "2018.07.10"]
[EventType "team-tourn"]
[EventCountry "GRE"]
[SourceTitle "playchess.com"]
[Source "ChessBase"]
[SourceQuality "1"]
[TimeControl "40/5400+30:1800+30"]

1. e4 {[%emt 0:00:00]} e5 {[%emt 0:00:00]} 2. Nf3 {[%emt 0:00:00]} Nc6 {[%emt 0:00:00]} 3. Bc4 {[%emt 0:00:36]} Bc5 {[%emt 0:00:27]} 4. Nc3 {[%emt 0:00:42]} Nf6 {[%emt 0:01:51]} 5. d3 {[%emt 0:00:47]} h6 {[%emt 0:01:23]} 6. Nd5 {[%emt 0:01:39]} d6 {[%emt 0:16:32]} 7. Bd2 {[%emt 0:01:32]} Nxd5 {[%emt 0:04:43]} 8. Bxd5 {[%emt 0:02:24]} Ne7 {[%emt 0:02:52]} 9. Bc4 {[%emt 0:06:37]} Ng6 {[%emt 0:07:07]} 10. Qe2 {[%emt 0:04:41]} Qf6 {[%emt 0:04:29]} 11. Be3 {[%emt 0:02:13]} Bg4 {[%emt 0:22:02]} 12. h3 {[%emt 0:02:28]} Bxe3 {[%emt 0:01:10]} 13. Qxe3 {[%emt 0:00:24]} Nf4 {[%emt 0:00:07]} 14. Rg1 {[%emt 0:01:07]} Nxh3 {[%emt 0:01:39]} 15. gxh3 {[%emt 0:00:56]} Bxf3 {[%emt 0:00:07]} 16. Rg3 {[%emt 0:01:20]} Bh5 {[%emt 0:00:23]} 17. f3 {[%emt 0:00:56]} g5 {[%emt 0:05:45]} 18. O-O-O {[%emt 0:02:38]} Qe7 {[%emt 0:08:15]} 19. Rf1 {[%emt 0:01:14]} a6 {[%emt 0:00:45]} 20. Qg1 {[%emt 0:02:10]} b5 {[%emt 0:01:19]} 21. Bd5 {[%emt 0:00:18]} Rb8 {[%emt 0:07:51]} 22. Bc6+ {[%emt 0:00:30]} Kf8 {[%emt 0:00:07]} 23. Qg2 {[%emt 0:00:34]} Rb6 {[%emt 0:00:53]} 24. Bd5 {[%emt 0:00:04]} c6 {[%emt 0:00:27]} 25. Bb3 {[%emt 0:00:21]} a5 {[%emt 0:01:19]} 26. a3 {[%emt 0:00:28]} a4 {[%emt 0:01:06]} 27. Ba2 {[%emt 0:00:06]} b4 {[%emt 0:00:30]} 28. Qg1 {[%emt 0:00:16]} Rb7 {[%emt 0:01:15]} 29. axb4 {[%emt 0:00:50]} Rxb4 {[%emt 0:00:14]} 30. Rf2 {[%emt 0:00:16]} Qa7 {[%emt 0:03:02]} 31. c3 {[%emt 0:00:23]} Rb7 {[%emt 0:00:47]} 32. Rfg2 {[%emt 0:00:35]} Qxg1+ {[%emt 0:02:59]} 33. Rxg1 {[%emt 0:00:13]} Ke7 {[%emt 0:00:11]} 34. d4 {[%emt 0:00:36]} f6 {[%emt 0:00:41]} 35. Rh1 {[%emt 0:00:38]} Rhb8 {[%emt 0:01:50]} 36. Rh2 {[%emt 0:00:44]} exd4 {[%emt 0:02:30]} 37. cxd4 {[%emt 0:00:17]} Rb4 {[%emt 0:00:02]} 38. Rd2 {[%emt 0:00:20]} Ra8 {[%emt 0:01:29]} 39. Rc2 {[%emt 0:01:00]} Ra6 {[%emt 0:00:40]} 40. d5 {[%emt 0:00:00]} c5 {[%emt 0:00:00]} 41. Bc4 {[%emt 0:00:54]} a3 {[%emt 0:04:02]} 42. bxa3 {[%emt 0:00:31]} Rxa3 {[%emt 0:00:07]} 43. Be2 {[%emt 0:00:36]} Rbb3 {[%emt 0:04:21]} 44. h4 {[%emt 0:01:34]} Bxf3 {[%emt 0:04:06]} 45. Rxf3 {[%emt 0:00:34]} Rxf3 {[%emt 0:00:11]} 46. Bxf3 {[%emt 0:00:05]} Rxf3 {[%emt 0:00:05]} 47. hxg5 {[%emt 0:00:04]} fxg5 {[%emt 0:00:32]} 48. Rh2 {[%emt 0:00:39]} Rf6 {[%emt 0:00:14]} 49. Kd2 {[%emt 0:00:05]} g4 {[%emt 0:00:22]} 50. Ke2 g3 0-1